fUST/lending_fUST_20260212
["ID","MTS","AMOUNT","RATE_DAILY","PERIOD"]
[405107268,1770832957193,500.0,0.00013273,2]
[405107269,1770832957246,265.10107905,0.00014368,2]
[405107270,1770832983327,200.77143484,0.00013699,2]
[405107279,1770833120942,345.32992802,0.00013699,2]
[405107281,1770833152098,-430.99262353,0.00026126,2]
[405107282,1770833152120,-122.80143902,0.00026358,3]
[405107283,1770833166124,500.0,0.00013699,2]
[405107284,1770833169269,500.0,0.00013273,2]
[405107285,1770833169326,1000.0,0.00013821,2]
[405107286,1770833169382,1500.0,0.00014368,2]
[405107287,1770833169431,176.34763367,0.00014916,2]
[405107291,1770833223103,500.0,0.00013699,2]
[405107292,1770833223136,434.41199447,0.00014247,2]
[405107293,1770833223291,500.0,0.00013273,2]
[405107294,1770833223338,267.72394717,0.00013821,2]
[405107295,1770833224239,500.0,0.00013273,2]
[405107296,1770833224274,500.0,0.00013821,2]
[405107297,1770833225076,-1177.98642727,0.00025865,2]
[405107298,1770833225133,-165.22295572,0.00025865,2]
[405107300,1770833244099,-986.55384723,0.00025606,2]
[405107301,1770833244358,519.93443746,0.00013273,2]
[405107302,1770833247081,-435.54570524,0.00025606,2]
[405107303,1770833247105,-834.26635385,0.00025865,2]
[405107304,1770833247124,-1128.69877517,0.00026126,2]
[405107305,1770833247144,-300.0,0.00027199,2]
[405107306,1770833247166,-500.0,0.00027199,2]
[405107307,1770833247187,-500.0,0.00027199,2]
[405107308,1770833247211,-0.29367181,0.00027199,2]
[405107309,1770833248082,-298.48218916,0.00027199,2]
[405107316,1770833344199,500.0,0.00013699,2]
[405107318,1770833360102,-1660.0545034,0.00025989,2]
[405107319,1770833360122,-287.0,0.00027198,2]
[405107320,1770833360145,-201.22413903,0.00027199,2]
[405107321,1770833360166,-500.0,0.00027199,2]
[405107322,1770833360189,-500.0,0.00027199,2]
[405107323,1770833360210,-20118.0,0.000272,2]
[405107324,1770833360231,-500.0,0.00027678,2]
[405107325,1770833360251,-151.0,0.00030137,14]
[405107326,1770833365304,500.0,0.00027199,2]
[405107327,1770833365373,500.0,0.00027199,2]
[405107329,1770833381442,500.0,0.00027199,2]
[405107331,1770833407863,201.997682,0.00015068,2]
[405107369,1770833431823,-200.0,0.00032437,120]
[405107371,1770833431834,-790.38279329,0.00034628,2]
[405107373,1770833431845,-209.61720671,0.00034628,2]
[405107375,1770833431855,-153.446,0.00034628,2]
[405107377,1770833431864,-180.0,0.00034628,2]
[405107378,1770833431874,-2771.98679329,0.000352,30]
[405107380,1770833431885,-248.16320671,0.000352,30]
[405107382,1770833431894,-218.56259577,0.000353,120]
[405107384,1770833431907,-12.97419752,0.000354,11]
[405107387,1770833431918,-388.02580248,0.000354,11]
[405107389,1770833431928,-19.23419752,0.00036416,2]
[405107391,1770833431940,-344.50019531,0.00036416,2]
[405107393,1770833431949,-380.72300661,0.0003652,2]
[405107422,1770833438285,-1154.89894879,0.0003652,2]
[405107423,1770833438297,-347.81737083,0.0003652,2]
[405107424,1770833438309,-1326.17325748,0.0003652,2]
[405107425,1770833438318,-742.38915205,0.0003652,2]
[405107426,1770833438328,-2000.0,0.00036603,2]
[405107427,1770833438340,-7051.77,0.0003662,10]
[405107428,1770833438351,-5482.17411471,0.0003662,3]
[405107429,1770833438360,-95243.48737449,0.0003663,2]
[405107430,1770833438370,-366232.36903409,0.0003663,2]
[405107431,1770833438380,-151.0,0.0003663,31]
[405107432,1770833438389,-509.54,0.0003663,2]
[405107433,1770833438399,-487.0,0.0003663,2]
[405107434,1770833438412,-562.7,0.0003663,2]
[405107435,1770833438421,-609.13045719,0.00036641,3]
[405107436,1770833438430,-453.0,0.0003665,30]
[405107437,1770833438440,-9000.0,0.00036651,2]
[405107438,1770833438450,-9049.19847095,0.00036651,2]
[405107439,1770833438459,-11544.97,0.000367,2]
[405107440,1770833438470,-172.28,0.000367,7]
[405107441,1770833438479,-420.0,0.0003698,30]
[405107442,1770833438489,-1000.0,0.00036986,5]
[405107443,1770833438499,-6091.3045719,0.0003699,3]
[405107444,1770833438508,-155.0,0.00036999,2]
[405107445,1770833438518,-31000.26029717,0.00037,2]
[405107446,1770833438530,-127503.08648273,0.00037,2]
[405107447,1770833438541,-24573.69302637,0.00037,2]
[405107448,1770833438551,-54144.09685329,0.00037,2]
[405107449,1770833438563,-21746.99879925,0.00037,2]
[405107457,1770833440126,-430.99262353,0.00037,2]
[405107458,1770833440138,-29233.49668908,0.00037,2]
[405107459,1770833440148,-3566.93501219,0.00037,2]
[405107468,1770833444205,-604.98336597,0.00037,2]
[405107478,1770833445790,-2000.0,0.00036603,2]
[405107479,1770833445800,-500.0,0.00037,2]
[405107481,1770833445895,-58791.8255802,0.00037,2]
[405107483,1770833446103,-403766.52376111,0.00037,2]
[405107487,1770833463763,445.0193537,0.00013699,2]
[405107488,1770833463793,318.1151142,0.00021918,2]
[405107489,1770833463821,181.8848858,0.00021918,2]
[405107490,1770833463848,327.05927597,0.00023288,2]
[405107492,1770833525616,287.00479948,0.00013273,2]
[405107493,1770833527561,500.0,0.00013699,2]
[405107494,1770833528036,500.0,0.00013699,2]
[405107495,1770833528084,470.91512537,0.00014247,2]
[405107496,1770833528874,614.7270319,0.00013699,2]
[405107497,1770833531394,500.0,0.00013273,2]
[405107498,1770833568297,-233.23211675,0.00024953,2]
[405107499,1770833583111,197.76050675,0.00013699,2]
[405107500,1770833583137,25.65088363,0.00013699,2]
[405107501,1770833584086,502.12608633,0.00013699,2]
[405107502,1770833733547,500.0,0.00013273,2]
[405107503,1770833733576,4500.0,0.00017656,2]
[405107504,1770833733614,2000.0,0.00014916,2]
[405107505,1770833733643,3000.0,0.00016012,2]
[405107506,1770833733670,3500.0,0.0001656,2]
[405107507,1770833733699,1000.0,0.00013821,2]
[405107508,1770833733848,4000.0,0.00017108,2]
[405107509,1770833733876,1500.0,0.00014368,2]
[405107510,1770833733903,5000.0,0.00018204,2]
[405107511,1770833733930,2500.0,0.00015464,2]
[405107512,1770833733960,2599.99974002,0.00018752,2]
[405107514,1770833823807,500.0,0.00013273,2]
[405107515,1770833823837,500.0,0.00013821,2]
[405107516,1770833943363,500.0,0.00013273,2]
[405107518,1770834063839,500.0,0.00013699,2]
[405107519,1770834063877,467.06980763,0.00014247,2]
[405107521,1770834186206,161.29683399,0.00013699,2]
[405107522,1770834305377,500.0,0.00013699,2]
[405107523,1770834305456,441.20250112,0.00014247,2]
[405107526,1770834365603,500.0,0.00013273,2]
[405107527,1770834369427,501.18283147,0.00013699,2]
[405107528,1770834372759,500.0,0.00013273,2]
[405107529,1770834374766,500.0,0.00013273,2]
[405107531,1770834379325,300.0,0.00013673,2]
[405107537,1770834422675,501.06734588,0.00013699,2]
[405107538,1770834423772,391.50246188,0.00013273,2]
[405107539,1770834424283,500.0,0.00021918,2]
[405107540,1770834424336,500.0,0.00023288,2]
[405107542,1770834429598,500.0,0.00013699,2]
[405107543,1770834430426,500.0,0.00013699,2]
[405107544,1770834432421,500.0,0.00013273,2]
[405107545,1770834433105,500.0,0.00013699,2]
[405107547,1770834435584,500.0,0.00013273,2]
[405107548,1770834436219,-2701.79242012,0.00030973,2]
[405107549,1770834438225,500.0,0.00013273,2]
[405107550,1770834440079,-1550.88827905,0.00030973,2]
[405107556,1770834487075,500.0,0.00013273,2]
[405107557,1770834487112,675.56979494,0.00013821,2]
[405107558,1770834487978,709.373,0.00013821,2]
[405107559,1770834488023,500.0,0.00013273,2]
[405107560,1770834488620,425.39496538,0.00014247,2]
[405107561,1770834489830,500.0,0.00013699,2]
[405107562,1770834507379,15464.66606485,0.00017,2]
[405107563,1770834508177,1224.99617483,0.0002,2]
[405107564,1770834508200,3210.55344152,0.0002,2]
[405107565,1770834517150,7264.8754148,0.000215,2]
[405107566,1770834519480,1377.00362805,0.00015,2]
[405107568,1770834545119,-599.16,0.00024,14]
[405107569,1770834545140,-300.0,0.00024649,2]
[405107570,1770834545160,-1531.29023197,0.0002465,2]
[405107571,1770834548741,500.0,0.00013699,2]
[405107572,1770834551089,-4365.5676999,0.0002465,2]
[405107573,1770834552091,-4743.50801904,0.0002465,2]
[405107574,1770834552111,-5000.0,0.00024703,2]
[405107575,1770834552131,-5000.0,0.00024953,2]
[405107576,1770834552151,-31052.74906722,0.00025,2]
[405107577,1770834552171,-420.0,0.00026713,2]
[405107578,1770834552190,-420.0,0.00028949,2]
[405107579,1770834552209,-747.31930083,0.00030973,2]
[405107580,1770834552228,-399.0,0.00031285,3]
[405107581,1770834553016,500.0,0.00013699,2]
[405107582,1770834553585,500.0,0.00013699,2]
[405107583,1770834553942,500.0,0.00013273,2]
[405107584,1770834553996,173.97860575,0.00013821,2]
[405107585,1770834554020,326.02139425,0.00013821,2]
[405107588,1770834606294,194.35865801,0.00013273,2]
[405107589,1770834606662,542.40183614,0.00013273,2]
[405107590,1770834609818,500.0,0.00013699,2]
[405107591,1770834609877,453.41808127,0.00014247,2]
[405107593,1770834610190,452.20051875,0.00013699,2]
[405107595,1770834612969,300.0,0.00013673,2]
[405107596,1770834613570,500.0,0.00013273,2]
[405107597,1770834616949,500.0,0.00013273,2]
[405107598,1770834617002,500.0,0.00013821,2]
[405107599,1770834620367,500.0,0.00013273,2]
[405107600,1770834620419,500.0,0.00013821,2]
[405107623,1770834631855,-166.0,0.00029425,14]
[405107625,1770834631865,-151.0,0.00030137,7]
[405107627,1770834631875,-87.89750944,0.00031654,2]
[405107629,1770834631887,-682.35002,0.00031654,2]
[405107674,1770834638064,-40.19763929,0.00031654,2]
[405107675,1770834638076,-524.23797179,0.00031974,2]
[405107676,1770834638089,-834.923581,0.00032297,2]
[405107677,1770834638103,-189.0,0.00033199,3]
[405107678,1770834638114,-16744.39289313,0.000332,2]
[405107679,1770834638125,-1548.9633971,0.00033566,2]
[405107680,1770834638135,-3998.36707157,0.000338,2]
[405107681,1770834638146,-464.9141795,0.00034613,2]
[405107682,1770834638156,-4094.31,0.00034888,10]
[405107683,1770834638167,-280205.4830418,0.00034898,2]
[405107684,1770834638178,-415.69644895,0.00035182,2]
[405107685,1770834638188,-200.62382963,0.00036,2]
[405107686,1770834638199,-520.85962976,0.00036479,2]
[405107687,1770834638208,-2000.0,0.00036603,2]
[405107688,1770834638218,-509.54,0.00036629,2]
[405107689,1770834638227,-235666.06378903,0.0003663,2]
[405107690,1770834638239,-127503.08648273,0.0003663,2]
[405107712,1770834640308,-3e-08,0.00034888,10]
[405107722,1770834645994,-6392.57999997,0.00034888,10]
[405107723,1770834646005,-2000.0,0.00036603,2]
[405107724,1770834646015,-3063.21876233,0.0003663,2]
[405107725,1770834646025,-95243.48737449,0.0003663,2]
[405107726,1770834646034,-487.0,0.0003663,2]
[405107727,1770834646043,-562.7,0.0003663,2]
[405107728,1770834646054,-235.5406181,0.00036842,2]
[405107729,1770834646063,-161.36837031,0.00036986,5]
[405107730,1770834646073,-1000.0,0.00036986,5]
[405107731,1770834646083,-155.0,0.00036999,2]
[405107732,1770834646093,-468239.1048747,0.00037,2]
[405107733,1770834646154,-1035.00282257,0.00037,2]
[405107738,1770834666290,506.90544277,0.00013699,2]
[405107739,1770834669663,500.0,0.00013699,2]
[405107740,1770834669697,936.66421864,0.00014247,2]
[405107741,1770834674776,170.60839147,0.00013699,2]
[405107743,1770834726735,500.0,0.00013699,2]
[405107744,1770834727171,500.0,0.00013699,2]
[405107745,1770834727595,300.0,0.00013673,2]
[405107746,1770834727763,500.0,0.00013273,2]
[405107747,1770834727812,500.0,0.00013821,2]
[405107748,1770834727949,500.0,0.00013699,2]
[405107749,1770834728003,500.0,0.00014247,2]
[405107750,1770834728930,568.35498859,0.00013699,2]
[405107752,1770834909594,160.53889185,0.00013273,2]
[405107753,1770834909844,500.0,0.00013699,2]
[405107754,1770834909874,500.0,0.00013699,2]
[405107755,1770834909907,500.0,0.00014247,2]
[405107756,1770834909936,1000.0,0.00014247,2]
[405107757,1770834913546,500.0,0.00013273,2]
[405107758,1770834923074,500.0,0.00013699,2]
[405107759,1770834923132,500.0,0.00014247,2]
[405107760,1770834923440,342.28780942,0.00013699,2]
[405107761,1770834925136,500.0,0.00013699,2]
[405107762,1770834927147,500.0,0.00013699,2]
[405107768,1770835024104,500.0,0.00013699,2]
[405107769,1770835024166,500.0,0.00014247,2]
[405107770,1770835024263,500.0,0.00013273,2]
[405107771,1770835027434,500.0,0.00013273,2]
[405107772,1770835027473,500.2543677,0.00013699,2]
[405107773,1770835028429,500.0,0.00013699,2]
[405107774,1770835031476,500.0,0.00013273,2]
[405107775,1770835032844,500.0,0.00013273,2]
[405107776,1770835042690,500.0,0.00013699,2]
[405107777,1770835044231,500.0,0.00013273,2]
[405107778,1770835147187,500.0,0.00013273,2]
[405107779,1770835156563,154.67007198,0.00013699,2]
[405107781,1770835208026,265.22746757,0.00013699,2]
[405107782,1770835210236,300.0,0.00013673,2]
[405107783,1770835215297,500.0,0.00013273,2]
[405107784,1770835265659,1000.0,0.00013821,2]
[405107785,1770835265714,500.0,0.00013273,2]
[405107786,1770835266027,500.0,0.00013699,2]
[405107787,1770835267381,212.28615271,0.00013699,2]
[405107788,1770835267413,500.0,0.00013273,2]
[405107789,1770835267471,560.22130704,0.00014368,2]
[405107790,1770835267527,1000.0,0.00013821,2]
[405107791,1770835269350,503.24880264,0.00013699,2]
[405107792,1770835271956,500.0,0.00013273,2]
[405107793,1770835272877,500.0,0.00013273,2]
[405107794,1770835272931,890.23848573,0.00013821,2]
[405107795,1770835275383,500.0,0.00013273,2]
[405107796,1770835275416,500.0,0.00013821,2]
[405107797,1770835278850,269.86496646,0.00013273,2]
[405107798,1770835324594,500.0,0.00013699,2]
[405107799,1770835324625,307.55128783,0.00014247,2]
[405107800,1770835328950,500.0,0.00013821,2]
[405107801,1770835328981,500.0,0.00013273,2]
[405107802,1770835331094,300.0,0.00013673,2]
[405107803,1770835331122,300.0,0.00014221,2]
[405107804,1770835383821,500.0,0.00013699,2]
[405107806,1770835503276,500.0,0.00013699,2]
[405107807,1770835503323,1000.0,0.00014247,2]
[405107808,1770835503457,321.68310957,0.00015342,2]
[405107809,1770835503486,1500.0,0.00014795,2]
[405107810,1770835507213,506.07408028,0.00013699,2]
[405107811,1770835509500,500.0,0.00013273,2]
[405107812,1770835509560,210.22335641,0.00013821,2]
[405107813,1770835512059,500.0,0.00013273,2]
[405107814,1770835512105,1000.0,0.00013821,2]
[405107815,1770835512154,1500.0,0.00014368,2]
[405107816,1770835512218,500.0,0.00014916,2]
[405107817,1770835512537,233.42232887,0.00013273,2]
[405107818,1770835513808,500.0,0.00013273,2]
[405107819,1770835513858,1000.0,0.00013821,2]
[405107820,1770835522588,172.33791284,0.00013273,2]
[405107821,1770835525854,5000.0,0.00023511,2]
[405107822,1770835527674,560.73111469,0.00013273,2]
[405107823,1770835533934,5000.0,0.00023511,2]
[405107824,1770835534123,-989.52596925,0.00023968,2]
[405107825,1770835548567,188.71657886,0.00023511,2]
[405107826,1770835556644,709.16030544,0.00023511,2]
[405107827,1770835559114,-359.47257417,0.00023968,2]
[405107829,1770835573680,500.0,0.00013273,2]
[405107830,1770835573731,1000.0,0.00013821,2]
[405107831,1770835573785,1500.0,0.00014368,2]
[405107832,1770835574019,188.00834446,0.00013273,2]
[405107833,1770835584931,439.0355587,0.00013699,2]
[405107834,1770835586761,500.0,0.00013699,2]
[405107835,1770835586792,500.0,0.00013273,2]
[405107836,1770835586823,1000.0,0.00013821,2]
[405107837,1770835586852,616.61497936,0.00014247,2]
[405107838,1770835598087,-298.46399934,0.00023968,2]
[405107839,1770835607903,3664.53425914,0.00023511,2]
[405107840,1770835624067,500.0,0.00013699,2]
[405107841,1770835624136,500.74038109,0.00014247,2]
[405107842,1770835624995,500.0,0.00013273,2]
[405107843,1770835625060,1000.0,0.00013821,2]
[405107844,1770835625127,845.20676096,0.00014368,2]
[405107845,1770835626083,-199.08,0.00023848,2]
[405107846,1770835626104,-150.0,0.00024089,2]
[405107847,1770835626126,-948.66266129,0.00024209,2]
[405107848,1770835628824,500.0,0.00013273,2]
[405107849,1770835628855,500.0,0.00014368,2]
[405107850,1770835628889,1000.0,0.00013821,2]
[405107851,1770835628922,500.0,0.00013273,2]
[405107852,1770835628955,1000.0,0.00013821,2]
[405107853,1770835628984,500.0,0.00014368,2]
[405107854,1770835629132,-251.33733871,0.00024209,2]
[405107855,1770835629155,-173.26123,0.00024454,2]
[405107856,1770835630081,-326.73877,0.00024454,2]
[405107857,1770835630103,-500.0,0.00024454,2]
[405107858,1770835630123,-500.0,0.00024454,2]
[405107859,1770835630144,-223.88197211,0.00024454,2]
[405107860,1770835630167,-500.0,0.00024952,2]
[405107861,1770835630187,-500.0,0.00024999,2]
[405107862,1770835630207,-523.5507513,0.00032245,2]
[405107863,1770835638088,-460.4492487,0.00032245,2]
[405107864,1770835638110,-3788.35335193,0.000332,2]
[405107865,1770835638131,-1997.7130888,0.00034209,2]
[405107866,1770835638151,-182.13973474,0.00034464,10]
[405107867,1770835638170,-158.53455867,0.00034464,10]
[405107868,1770835638192,-6373.5957272,0.00034897,2]
[405107869,1770835683845,1000.0,0.00013821,2]
[405107870,1770835683877,500.0,0.00013273,2]
[405107871,1770835684122,1500.0,0.00014368,2]
[405107872,1770835684528,273.6912201,0.00013699,2]
[405107873,1770835686562,500.0,0.00013273,2]
[405107874,1770835686613,1000.0,0.00013821,2]
[405107875,1770835686671,1500.0,0.00014368,2]
[405107876,1770835686826,669.24202811,0.00014916,2]
[405107877,1770835743424,500.0,0.00013699,2]
[405107878,1770835743455,1000.0,0.00014247,2]
[405107879,1770835750083,-290.92,0.00023868,2]
[405107880,1770835750105,-489.4722529,0.00024226,3]
[405107881,1770835750127,-689.6077471,0.00024648,3]
[405107882,1770835761102,-100.84746293,0.00024648,3]
[405107883,1770835761126,-1091.43816716,0.00025416,3]
[405107884,1770835761148,-1392.4211243,0.00026183,3]
[405107885,1770835761170,-1693.40408143,0.0002695,3]
[405107886,1770835761193,-300.0,0.00027717,2]
[405107887,1770835761214,-1994.38703856,0.00027718,3]
[405107888,1770835761237,-2295.36999569,0.00028485,3]
[405107889,1770835761260,-684.01245896,0.00029253,3]
[405107890,1770835807794,1000.0,0.00013821,2]
[405107891,1770835807853,1500.0,0.00014368,2]
[405107892,1770835807909,2000.0,0.00014916,2]
[405107893,1770835807964,500.0,0.00013273,2]
[405107894,1770835808018,1618.98403551,0.00015464,2]
[405107895,1770835810284,500.0,0.00013273,2]
[405107896,1770835810313,569.85458534,0.00013821,2]
[405107897,1770835812848,161.0,8.3e-07,2]
[405107898,1770835813872,161.0,8.3e-07,2]
[405107899,1770835814975,161.0,8.3e-07,2]
[405107900,1770835815910,161.0,8.3e-07,2]
[405107903,1770835816977,161.0,8.3e-07,2]
[405107904,1770835818011,161.0,8.3e-07,2]
[405107905,1770835819060,161.0,8.3e-07,2]
[405107906,1770835820118,161.0,8.3e-07,2]
[405107907,1770835821158,161.0,8.3e-07,2]
[405107908,1770835822295,161.0,8.3e-07,2]
[405107927,1770835832039,-1887.22056985,0.00029253,3]
[405107929,1770835832050,-2771.7362899,0.0003002,3]
[405107931,1770835832060,-2948.70303357,0.00030788,3]
[405107933,1770835832073,-23.53651742,0.00030788,3]
[405107935,1770835832086,-3172.74281208,0.00031555,3]
[405107937,1770835832096,-1265.14119048,0.00032322,3]
[405107946,1770835838908,-99.55417885,0.00034797,120]
[405107947,1770835838920,-119.00841692,0.00034797,120]
[405107948,1770835838929,-372.16272028,0.00034897,2]
[405107949,1770835838940,-2254.24155252,0.00034897,2]
[405107950,1770835838950,-1668.73282696,0.00034897,2]
[405107958,1770835840382,-144.19362903,0.00034897,2]
[405107959,1770835840408,-311.99680193,0.00034897,2]
[405107981,1770835846400,-6924.27521303,0.00034897,2]
[405107982,1770835846410,-692.0894114,0.00034944,2]
[405107983,1770835846420,-401.0,0.0003572,11]
[405107984,1770835846430,-377.78598553,0.00035954,2]
[405107985,1770835846440,-401.0,0.00036284,11]
[405107986,1770835846449,-159.42065072,0.000363,2]
[405107987,1770835846458,-3923.26734645,0.000364,2]
[405107988,1770835846583,-39.94139713,0.000364,2]
[405107990,1770835847279,-684.27519021,0.000364,2]
[405107991,1770835868310,546.58941443,0.00013273,2]
[405107992,1770835869161,504.09505111,0.00013273,2]
[405107993,1770835892812,-231.0,0.0002589,2]
[405107995,1770835924919,502.93473573,0.00013699,2]
[405107996,1770835926056,354.27501311,0.00013699,2]
[405107997,1770835983560,500.0,0.00013273,2]
[405107998,1770835984716,500.0,0.00013699,2]
[405108001,1770836043376,500.0,0.00013273,2]
[405108002,1770836043409,949.78290204,0.00013821,2]
[405108009,1770836104357,500.0,0.00013273,2]
[405108010,1770836104387,500.0,0.00013699,2]
[405108011,1770836104418,543.57219283,0.00013821,2]
[405108012,1770836104473,500.0,0.00013273,2]
[405108013,1770836104535,353.66994885,0.00013821,2]
[405108014,1770836111673,500.0,0.00013273,2]
[405108015,1770836111824,1000.0,0.00013821,2]
[405108016,1770836171029,500.0,0.00013699,2]
[405108019,1770836176937,500.80139127,0.00013273,2]
[405108020,1770836177070,499.91231904,0.00013699,2]
[405108021,1770836186898,500.0,0.00013699,2]
[405108022,1770836186944,375.31483149,0.00014247,2]
[405108023,1770836193505,503.87593162,0.00013273,2]
[405108026,1770836223520,500.74819225,0.00013699,2]
[405108027,1770836223889,500.0,0.00013273,2]
[405108028,1770836227694,1000.0,0.00013821,2]
[405108029,1770836227748,1500.0,0.00014368,2]
[405108030,1770836227777,500.0,0.00013273,2]
[405108031,1770836227805,1571.00437905,0.00014916,2]
[405108032,1770836227855,500.0,0.00013273,2]
[405108033,1770836228588,501.57603049,0.00013273,2]
[405108034,1770836229991,500.0,0.00013699,2]
[405108035,1770836231843,500.0,0.00013273,2]
[405108036,1770836232928,500.0,0.00013273,2]
[405108037,1770836232980,504.68662575,0.00013821,2]
[405108038,1770836235304,500.0,0.00013273,2]
[405108039,1770836238952,500.0,0.00013699,2]
[405108040,1770836239011,500.0,0.00013273,2]
[405108041,1770836239237,500.0,0.00013273,2]
[405108042,1770836239828,503.08289833,0.00013273,2]
[405108052,1770836289490,504.04510864,0.00013273,2]
[405108054,1770836315327,310.28544624,0.0002351,2]
[405108055,1770836344253,500.0,0.00013273,2]
[405108056,1770836344406,500.0,0.00013699,2]
[405108057,1770836344530,500.0,0.00013699,2]
[405108058,1770836344580,672.91056378,0.00014247,2]
[405108060,1770836347592,425.51271515,0.00013699,2]
[405108061,1770836347679,500.0,0.00013699,2]
[405108062,1770836347739,502.0244575,0.00014247,2]
[405108066,1770836349176,500.0,0.00013273,2]
[405108067,1770836353796,500.0,0.00013699,2]
[405108070,1770836418819,500.0,0.00013273,2]
[405108071,1770836420391,500.0,0.00013273,2]
[405108072,1770836422838,500.0,0.00013699,2]
[405108080,1770836463637,500.0,0.00013273,2]
[405108083,1770836464690,496.63719358,0.00013699,2]
[405108084,1770836466539,500.0,0.00013699,2]
[405108085,1770836467119,647.09803383,0.00013699,2]
[405108086,1770836468806,500.0,0.00013699,2]
[405108087,1770836468859,260.05017888,0.00014247,2]
[405108088,1770836469028,500.0,0.00013273,2]
[405108089,1770836469075,1000.0,0.00013821,2]
[405108090,1770836469131,500.0,0.00014916,2]
[405108091,1770836469432,1500.0,0.00014368,2]
[405108092,1770836473632,500.0,0.00013273,2]
[405108093,1770836474037,500.0,0.00013273,2]
[405108095,1770836528876,500.0,0.00013273,2]
[405108103,1770836597822,-245.9968019,0.00023715,2]
[405108110,1770836600975,-649.99999996,0.00023715,2]
[405108111,1770836605336,-300.0,0.00023715,2]
[405108112,1770836607446,-265.12851617,0.00023715,2]
[405108113,1770836609655,-342.2128281,0.00023715,2]
[405108114,1770836627276,150.0,0.00030136,120]
[405108117,1770836658125,326.72922112,0.00023511,2]
[405108118,1770836666146,5000.0,0.00023511,2]
[405108119,1770836674238,5000.0,0.00023511,2]
[405108120,1770836690019,5000.0,0.00023511,2]
[405108121,1770836697830,430.99262353,0.00023511,2]
[405108123,1770836709301,500.0,0.00013699,2]
[405108124,1770836709354,500.0,0.00013699,2]
[405108125,1770836709533,602.95161427,0.00013699,2]
[405108126,1770836712755,1508.20938296,0.00023511,2]
[405108127,1770836718674,500.0,0.00013273,2]
[405108128,1770836720779,986.55384723,0.00023511,2]
[405108129,1770836749120,-1038.36725322,0.00023715,2]
[405108138,1770836789208,643.52304824,0.00013699,2]
[405108139,1770836790258,501.08741213,0.00021918,2]
[405108140,1770836790611,160.9968606,0.00013699,2]
[405108144,1770836823514,500.0,0.00013699,2]
[405108145,1770836832124,-191.16051702,0.00023715,2]
[405108146,1770836838204,-195.74465493,0.00023715,2]
[405108147,1770836838226,-150.0,0.00023845,2]
[405108148,1770836838248,-1048.86027895,0.00023874,2]
[405108149,1770836854084,-200.1601262,0.00023774,2]
[405108150,1770836854106,-786.39372103,0.00023874,2]
[405108153,1770836946108,-300.0,0.00023972,2]
[405108154,1770836946129,-12392.51187365,0.00023973,2]
[405108155,1770836946150,-300.0,0.00024073,2]
[405108156,1770836946171,-300.0,0.00024073,2]
[405108157,1770836946192,-300.0,0.00024073,2]
[405108158,1770836946212,-4522.2766184,0.00024074,2]
[405108159,1770836946234,-500.0,0.00024074,2]
[405108160,1770836946253,-528.86559205,0.00024074,2]
[405108161,1770836946273,-188.99968418,0.00024074,2]
[405108162,1770836946294,-500.0,0.00024074,2]